bitfinex-derivatives/quotes_ETHF0:USTF0_20250702
["timestamp","ask_amount","ask_price","bid_price","bid_amount"]
[1751465482182,0.81458,2454.5,2454.4,0.81456]
[1751465482383,0.81455,2454.6,2454.5,0.81452]
[1751465482880,0.81455,2454.6,2454.3,7.09495454]
[1751465482881,0.12221701,2454.7,2454.6,0.81452]
[1751465483083,0.81448,2454.7,2454.6,0.81452]
[1751465483385,0.81447,2454.8,2454.7,0.81445]
[1751465483677,0.81444,2454.9,2454.8,0.81442]
[1751465483877,37.37644,2454.9,2454.8,0.81442]
[1751465484784,12.41944,2454.9,2454.8,0.81442]
[1751465484982,37.37644,2454.9,2454.8,0.81442]
[1751465485182,11.605,2454.9,2454.8,0.81442]
[1751465485584,12.41942,2454.9,2454.8,0.81442]
[1751465488586,11.605,2454.9,2454.8,0.81442]
[1751465489187,11.605,2454.9,2454.8,2.21412]
[1751465489387,12.41942,2454.9,2454.8,2.21412]
[1751465489984,11.605,2454.9,2454.8,2.21412]
[1751465490288,0.82044961,2455.2,2455.1,0.81435]
[1751465490484,25.77344961,2455.2,2455.1,0.81435]
[1751465490989,0.00610961,2455.2,2455.1,0.81435]
[1751465491389,0.82042961,2455.2,2455.1,0.81435]
[1751465491591,0.00610961,2455.2,2455.1,0.81435]
[1751465491887,0.82042961,2455.2,2455.1,0.81435]
[1751465493593,0.00610961,2455.2,2455.1,0.81435]
[1751465493890,0.82042961,2455.2,2455.1,0.81435]
[1751465494090,0.00610961,2455.2,2455.1,0.81435]
[1751465494482,0.00610961,2455.2,2455.1,3.04775]
[1751465499905,11.595,2455.7,2455.6,0.81419]
[1751465500300,12.40915,2455.7,2455.6,0.81419]
[1751465501299,11.595,2455.7,2455.6,0.81419]
[1751465502104,12.40915,2455.7,2455.6,0.81419]
[1751465502805,11.595,2455.7,2455.6,0.81419]
[1751465503211,12.40915,2455.7,2455.6,0.81419]
[1751465504306,11.595,2455.7,2455.6,0.81419]
[1751465504710,0.81419,2455.6,2455.5,0.81421]
[1751465504908,3.71592454,2455.6,2455.5,0.81422]
[1751465506805,28.65392454,2455.6,2455.5,0.81422]
[1751465507005,24.938,2455.6,2455.5,0.81422]
[1751465509904,29.46811454,2455.6,2455.5,0.81422]
[1751465510105,0.81425,2455.5,2455.4,0.81422]
[1751465510803,0.81429,2455.3,2455.2,40.8]
[1751465511106,3.71592454,2455.3,2455.2,41.61429]
[1751465511300,4.53021454,2455.3,2455.2,0.81429]
[1751465511707,5.89281454,2455.3,2455.2,0.81429]
[1751465512407,0.81438,2455.1,2455.0,0.81436]
[1751465512606,4.53030454,2455.1,2455.0,0.81436]
[1751465513011,0.81439,2455.0,2454.9,0.00610961]
[1751465513308,28.65679,2455.0,2454.9,0.00610961]
[1751465514808,28.77899208,2455.0,2454.9,0.00610961]
[1751465515404,32.49491662,2455.0,2454.9,0.00610961]
[1751465518811,32.49491662,2455.0,2454.9,0.82052961]
[1751465519214,30.42661662,2455.0,2454.9,0.00610961]
[1751465519714,30.42661662,2455.0,2454.9,0.82052961]
[1751465520209,30.42661662,2455.0,2454.9,0.00610961]
[1751465521315,30.42661662,2455.0,2454.9,0.82052961]
[1751465521515,26.71069208,2455.0,2454.9,0.00610961]
[1751465521713,30.42661662,2455.0,2454.9,0.82052961]
[1751465522114,30.42661662,2455.0,2454.9,0.00610961]
[1751465525713,5.49361662,2455.0,2454.9,0.00610961]
[1751465526013,30.42461662,2455.0,2454.9,0.00610961]
[1751465527214,0.81455,2454.5,2454.4,1.58317]
[1751465527415,25.74455,2454.5,2454.4,1.58317]
[1751465527811,24.93,2454.5,2454.4,1.58317]
[1751465528212,0.8145,2454.7,2454.6,0.81451]
[1751465528416,24.93,2454.7,2454.6,0.81451]
[1751465528617,24.93,2454.7,2454.6,2.16431]
[1751465529113,25.74448,2454.7,2454.6,2.16431]
[1751465529419,25.74448,2454.7,2454.6,1.3498]
[1751465529916,0.81451,2454.6,2454.5,0.81452]
[1751465530119,29.46043454,2454.7,2454.6,0.81452]
[1751465530917,24.929,2454.8,2454.5,3.71592454]
[1751465531120,24.929,2454.8,2454.7,4.53040454]
[1751465531321,12.40241,2455.0,2454.9,0.81442]
[1751465531521,37.33041,2455.0,2454.9,0.81442]
[1751465532123,12.40241,2455.0,2454.9,0.81442]
[1751465532322,37.33041,2455.0,2454.9,0.81442]
[1751465533526,0.81442,2454.9,2454.8,0.8165]
[1751465533821,0.81442,2454.9,2454.8,1.63095]
[1751465534525,41.04632454,2455.0,2454.9,0.81442]
[1751465535524,0.81442,2454.9,2454.8,0.8165]
[1751465535725,41.04633454,2455.0,2454.9,0.81442]
[1751465536225,36.516,2455.0,2454.9,0.81442]
[1751465536625,37.33038,2455.0,2454.9,0.81442]
[1751465537622,36.516,2455.0,2454.9,0.81442]
[1751465537821,36.516,2455.0,2454.9,2.25592]
[1751465538926,11.588,2455.0,2454.9,2.25592]
[1751465539229,0.00610961,2455.1,2455.0,0.81438]
[1751465539423,0.00610961,2455.1,2455.0,2.25588]
[1751465540227,0.00610961,2455.1,2455.0,5.97180454]
[1751465540628,0.00610961,2455.1,2455.0,2.25588]
[1751465541927,28.64403415,2455.1,2454.8,0.8165]
[1751465542228,4.53034454,2454.9,2454.8,1.6309]
[1751465542727,29.45134454,2454.9,2454.8,0.8165]
[1751465543121,0.81452,2454.7,2454.6,0.8145]
[1751465543319,29.45044454,2454.7,2454.6,0.8145]
[1751465543932,29.45040454,2454.7,2454.6,0.8145]
[1751465548431,25.73448,2454.7,2454.6,0.8145]
[1751465548630,24.92,2454.7,2454.6,0.8145]
[1751465550337,12.40243,2454.9,2454.8,0.81445]
[1751465550635,36.506,2454.9,2454.8,0.81445]
[1751465550834,37.32042,2454.9,2454.8,0.81445]
[1751465551030,36.506,2454.9,2454.8,0.81445]
[1751465551633,0.8144,2455.0,2454.9,0.81442]
[1751465551834,25.7314,2455.0,2454.9,0.81442]
[1751465552338,0.81442,2454.9,2454.8,1.63522]
[1751465552538,0.81452,2454.7,2454.6,0.8145]
[1751465553139,0.81454,2454.6,2454.5,0.81453]
[1751465553341,29.44646454,2454.6,2454.5,0.81455]
[1751465553541,28.63192454,2454.6,2454.5,0.81455]
[1751465553942,29.44644454,2454.6,2454.5,0.81455]
[1751465555043,28.63192454,2454.6,2454.5,0.81455]
[1751465555443,29.44644454,2454.6,2454.5,0.81455]
[1751465556039,28.63192454,2454.6,2454.5,0.81455]
[1751465556243,29.44644454,2454.6,2454.5,0.81455]
[1751465557545,0.81455,2454.5,2454.4,1.63535]
[1751465558743,0.81455,2454.5,2454.4,0.8208]
[1751465558944,0.81463,2454.4,2454.3,0.8146]
[1751465559147,0.81465,2454.2,2454.1,0.7883]
[1751465559346,29.44457454,2454.2,2454.1,1.60298]
[1751465559743,28.62992454,2454.2,2454.1,1.60298]
[1751465559951,25.72865,2454.2,2454.1,1.60298]
[1751465560150,24.914,2454.2,2454.1,1.60298]
[1751465560651,0.81457,2454.5,2454.1,4.50422454]
[1751465560848,24.914,2454.5,2454.4,0.81454]
[1751465561550,1.66287,2454.8,2454.7,0.81448]
[1751465561750,12.4284,2454.8,2454.7,0.81448]
[1751465561950,11.58,2454.8,2454.7,4.53040454]
[1751465562144,0.00610961,2455.1,2455.0,0.81438]
[1751465563643,0.82045961,2455.1,2455.0,0.81438]
[1751465563845,4.53638415,2455.1,2455.0,0.81438]
[1751465564048,3.72203415,2455.1,2455.0,0.81438]
[1751465564450,4.07027,2456.1,2455.1,2.03588]
[1751465564451,3.71592454,2455.9,2455.1,2.03588]
[1751465564650,1.24051096,2455.8,2455.7,0.81415]
[1751465565050,1.36270806,2455.8,2455.7,0.81415]
[1751465565251,1.36270806,2455.8,2455.6,0.81416]
[1751465565454,0.1221971,2455.8,2455.7,0.81415]
[1751465565654,5.06932297,2455.8,2455.7,0.81415]
[1751465566950,1.35339843,2455.8,2455.7,0.81415]
[1751465567755,0.1221971,2455.8,2455.7,0.81415]
[1751465571958,3.83812164,2455.8,2455.7,0.81415]
[1751465573661,4.65224164,2455.8,2455.7,0.81415]
[1751465573864,3.83812164,2455.8,2455.7,0.81415]
[1751465576768,4.65224164,2455.8,2455.7,0.81415]
[1751465576963,0.81416,2455.7,2455.3,42.83566]
[1751465577168,3.71592454,2455.4,2455.3,41.61428]
[1751465577369,3.71592454,2455.4,2455.3,0.81428]
[1751465579170,36.475,2455.7,2455.6,0.81418]
[1751465579370,2.37691,2455.9,2455.4,5.75154454]
[1751465579571,36.473,2455.8,2455.7,0.81415]
[1751465579869,36.59516724,2455.8,2455.7,0.81415]
[1751465580365,11.69816724,2455.8,2455.7,0.81415]
[1751465580572,0.81405,2456.0,2455.9,0.81405]
[1751465580766,37.28705,2456.0,2455.9,0.81405]
[1751465580964,37.40921227,2456.0,2455.9,0.81405]
[1751465581269,0.81412,2455.9,2455.8,0.8141]
[1751465581468,4.53004454,2455.9,2455.8,0.8141]
[1751465581667,0.81415,2455.8,2455.7,0.81412]
[1751465582062,0.81415,2455.7,2455.6,0.81416]
[1751465582264,28.61192454,2455.7,2454.8,2.04220961]
[1751465582468,4.53027454,2455.2,2455.1,0.81433]
[1751465582672,0.81435,2455.2,2455.1,0.81433]
[1751465583275,37.2863,2455.3,2455.2,0.81432]
[1751465583671,37.40849212,2455.3,2455.2,0.81432]
[1751465584771,0.81433,2455.2,2455.1,0.81435]
[1751465584971,0.81437,2455.1,2455.0,0.81437]
[1751465585174,0.81438,2455.0,2454.9,0.81439]
[1751465585369,0.81442,2454.9,2454.8,0.82053961]
[1751465585672,0.81436,2455.1,2455.0,0.81438]
[1751465586073,0.81439,2455.0,2454.9,0.81438]
[1751465586272,0.93657208,2455.1,2455.0,0.81438]
[1751465586476,0.81437,2455.1,2455.0,0.81438]
[1751465586675,0.93657208,2455.1,2455.0,0.81438]
[1751465587577,0.81441,2455.0,2454.8,0.82053961]
[1751465587777,25.71241,2455.0,2454.9,0.81442]
[1751465588074,25.8346071,2455.0,2454.9,0.81442]
[1751465589479,25.0201971,2455.0,2454.9,0.81442]
[1751465589678,11.573,2455.0,2454.9,4.53034454]
[1751465590481,11.573,2455.0,2454.9,0.81442]
[1751465590676,11.573,2455.0,2454.9,4.53034454]
[1751465590876,12.38739,2455.0,2454.9,0.81442]
[1751465593082,0.81442,2454.9,2454.8,0.82053961]
[1751465593283,0.81442,2454.9,2454.8,0.00610961]
[1751465593486,0.81442,2454.9,2454.8,0.82055961]
[1751465594286,12.38742,2455.0,2454.9,0.81442]
[1751465594584,12.50962705,2455.0,2454.9,0.81442]
[1751465595087,11.69520705,2455.0,2454.9,4.53034454]
[1751465595384,11.573,2455.0,2454.9,4.53034454]
[1751465596581,0.81431,2455.3,2455.2,0.81429]
[1751465596886,37.28531,2455.3,2455.2,0.81429]
[1751465597687,0.81432,2455.2,2455.1,0.81432]
[1751465598785,37.28531,2455.3,2455.2,0.81432]
[1751465599188,37.28431,2455.3,2455.2,0.81432]
[1751465599383,12.38731,2455.3,2455.2,0.81432]
[1751465599577,37.28431,2455.3,2455.2,0.81432]
[1751465602089,36.47,2455.3,2455.2,0.81432]
[1751465602487,37.28429,2455.3,2455.2,0.81432]
[1751465603986,36.47,2455.3,2455.2,0.81432]
[1751465604286,37.28429,2455.3,2455.2,0.81432]
[1751465604584,36.47,2455.3,2455.2,0.81432]
[1751465604793,11.573,2455.3,2455.2,0.81432]
[1751465604990,36.468,2455.3,2455.2,0.81432]
[1751465605584,3.01216,2455.7,2455.6,0.81419]
[1751465605785,37.28216,2455.7,2455.6,0.81419]
[1751465605987,42.34155168,2455.7,2455.1,40.8]
[1751465606290,0.81427,2455.4,2455.3,0.81427]
[1751465606489,24.895,2455.4,2455.3,0.81427]
[1751465607588,0.81429,2455.3,2455.2,0.81429]
[1751465607992,0.81432,2455.2,2455.1,41.5204]
[1751465608190,25.70732,2455.2,2455.1,41.5204]
[1751465608791,25.70732,2455.2,2455.1,42.33475]
[1751465608988,24.893,2455.2,2455.1,1.53475]
[1751465609191,24.893,2455.2,2455.1,2.95205]
[1751465609386,25.70732,2455.2,2455.1,2.95205]
[1751465610187,24.893,2455.2,2455.1,2.95205]
[1751465610386,25.70732,2455.2,2455.1,2.95205]
[1751465611094,24.893,2455.2,2455.1,2.95205]
[1751465611290,25.70732,2455.2,2455.1,2.95205]
[1751465611587,0.81423,2455.5,2455.2,0.81432]
[1751465611787,0.81404,2456.1,2456.0,0.81404]
[1751465612089,0.93621212,2456.1,2456.0,0.81403]
[1751465612293,25.82821212,2456.1,2456.0,0.81403]
[1751465612494,16.32740214,2456.4,2456.1,0.81399]
[1751465612495,12.2904,2456.4,2456.1,0.81399]
[1751465612789,1.35574695,2456.3,2456.1,3.71592454]
[1751465612994,0.12214735,2456.3,2456.2,0.81399]
[1751465613187,37.81970228,2456.3,2456.2,0.81399]
[1751465613391,12.50909735,2456.3,2456.2,0.81399]
[1751465613593,41.53527872,2456.3,2455.8,2.7595]
[1751465613794,0.81402,2456.2,2456.1,0.81401]
[1751465614091,0.9361574,2456.2,2456.1,0.81401]
[1751465614491,0.1221374,2456.2,2456.1,0.81401]
[1751465614691,12.38696,2456.3,2456.2,0.81399]
[1751465614993,37.27596,2456.3,2456.2,0.81399]
[1751465615193,37.27595,2456.3,2456.2,0.81399]
[1751465615395,0.7174,2456.4,2456.3,0.81395]
[1751465615595,37.1764,2456.4,2456.3,0.81395]
[1751465615796,38.53143829,2456.4,2456.3,0.81395]
[1751465616395,0.81396,2456.3,2456.2,0.81397]
[1751465616592,38.50485089,2456.3,2456.2,0.81397]
[1751465616993,1.23290089,2456.3,2456.2,0.81397]
[1751465617187,0.81394,2456.4,2456.3,0.81395]
[1751465617395,36.452,2456.4,2456.3,4.52987454]
[1751465617694,12.79862264,2456.4,2456.3,4.52987454]
[1751465617890,0.7791,2456.8,2456.6,0.81385]
[1751465618096,12.3496,2457.0,2456.9,0.81375]
[1751465618398,38.17145243,2457.0,2456.9,0.81375]
[1751465618796,38.17145243,2457.0,2456.7,0.7218]
[1751465618797,41.39525433,2457.0,2456.7,0.7218]
[1751465618991,3.71592454,2456.8,2456.5,0.81386]
[1751465619197,0.81389,2456.5,2456.4,1.55]
[1751465619397,0.81389,2456.5,2456.4,0.7361]
[1751465619597,0.81389,2456.5,2456.2,2.2093]
[1751465619598,0.81395,2456.3,2456.2,1.58126]
[1751465619897,0.81399,2456.2,2456.1,0.00610961]
[1751465620505,4.652042,2456.2,2456.1,0.00610961]
[1751465621202,6.067442,2456.2,2456.1,0.00610961]
[1751465621598,11.067442,2456.2,2456.1,0.00610961]
[1751465622606,4.0703,2456.0,2455.0,0.81436]
[1751465622806,0.8143,2455.3,2455.1,0.81434]
[1751465623009,0.81432,2455.2,2455.0,42.9591]
[1751465623212,0.8143,2455.3,2455.1,0.81433]
[1751465623401,36.448,2455.4,2455.1,5.92355454]
[1751465623607,0.81427,2455.4,2455.1,5.10922454]
[1751465623810,24.883,2455.3,2455.2,0.81432]
[1751465624112,0.81425,2455.4,2455.3,4.53020454]
[1751465624309,0.81425,2455.4,2455.3,3.71592454]
[1751465624611,0.8143,2455.3,2455.1,1.3933]
[1751465625006,0.81427,2455.4,2455.2,0.81432]
[1751465625707,0.81427,2455.4,2455.3,0.81428]
[1751465626206,36.448,2455.6,2455.3,0.81428]
[1751465626207,0.81424,2455.5,2455.3,0.81428]
[1751465626413,0.81424,2455.5,2455.4,0.81425]
[1751465626614,0.93642466,2455.5,2455.4,0.81425]
[1751465627209,37.38742466,2455.5,2455.4,0.81425]
[1751465627514,0.81425,2455.4,2455.3,0.81426]
[1751465627715,36.57318466,2455.5,2455.4,0.81425]
[1751465627911,36.451,2455.5,2455.4,0.81425]
[1751465629314,37.26522,2455.5,2455.4,1.55015]
[1751465631417,36.451,2455.5,2455.4,1.55015]
[1751465631616,37.26522,2455.5,2455.4,1.55015]
[1751465632118,37.26522,2455.5,2455.4,0.7359]
[1751465632617,37.26522,2455.5,2455.4,1.55015]
[1751465632817,37.26522,2455.5,2455.4,0.7359]
[1751465633019,37.26522,2455.5,2455.4,1.55015]
[1751465633319,37.26522,2455.5,2455.4,0.7359]
[1751465636222,0.81425,2455.4,2455.3,0.81427]
[1751465637321,0.81432,2455.3,2455.2,0.8143]
[1751465637521,25.70032,2455.3,2455.2,0.8143]
[1751465637720,0.81432,2455.2,2455.1,2.87432]
[1751465638323,0.81432,2455.2,2455.1,2.06]
[1751465638520,0.81432,2455.2,2455.1,1.47915]
[1751465639216,0.81432,2455.2,2455.1,0.6648]
[1751465639413,25.20616542,2455.3,2455.0,0.81437]
[1751465639414,0.81435,2455.1,2455.0,0.81437]
[1751465639717,0.81438,2455.0,2454.9,0.7302]
[1751465639919,0.81454,2454.6,2454.5,0.81453]
[1751465640117,25.70053,2454.6,2454.5,0.81455]
[1751465641014,24.886,2454.6,2454.5,0.81455]
[1751465641220,25.70052,2454.6,2454.5,0.81455]
[1751465641422,24.886,2454.6,2454.5,0.81455]
[1751465641623,24.886,2454.6,2454.5,2.24665]
[1751465644619,25.70052,2454.6,2454.5,2.24665]
[1751465645125,0.81458,2454.4,2454.3,42.28641]
[1751465645325,0.81458,2454.4,2454.3,0.6718]
[1751465645524,0.81458,2454.4,2454.3,0.81462]
[1751465645724,0.81458,2454.4,2454.1,0.81467]
[1751465645725,0.81468,2454.2,2454.1,0.81467]
[1751465645925,25.70364,2454.3,2454.2,0.81465]
[1751465646324,0.81466,2454.2,2454.1,0.81466]
[1751465646525,0.81468,2454.1,2454.0,42.98908]
[1751465646725,0.81467,2454.2,2454.1,0.81468]
[1751465647225,25.70365,2454.3,2454.2,0.81465]
[1751465647426,0.81467,2454.2,2454.1,0.81466]
[1751465647927,24.889,2454.3,2454.0,42.98909]
[1751465647928,0.81468,2454.1,2454.0,42.98909]
[1751465648326,0.81468,2454.1,2454.0,42.1744]
[1751465648629,0.81467,2454.2,2454.1,0.81468]
[1751465649127,25.70974961,2454.3,2454.2,0.81465]
[1751465649328,24.89510961,2454.3,2454.2,0.81465]
[1751465649532,25.0173565,2454.3,2454.2,0.81465]
[1751465650031,25.8319765,2454.3,2454.2,0.81465]
[1751465651427,25.0173565,2454.3,2454.2,0.81465]
[1751465651626,25.8319765,2454.3,2454.2,0.81465]
[1751465651821,25.0173565,2454.3,2454.2,0.81465]
[1751465652027,25.0173565,2454.3,2454.2,4.53217874]
[1751465652626,25.8319765,2454.3,2454.2,0.81465]
[1751465653630,25.0173565,2454.3,2454.2,0.81465]
[1751465654631,0.00610961,2454.3,2454.2,4.53217874]
[1751465654829,11.57,2454.9,2454.6,0.81452]
[1751465655028,11.57,2454.9,2454.8,4.53197874]
[1751465655330,36.463,2454.9,2454.8,0.81445]
[1751465656032,11.57,2454.9,2454.8,0.81445]
[1751465656230,37.27742,2454.9,2454.8,0.81445]
[1751465658035,36.463,2454.9,2454.8,0.81445]
[1751465659131,36.463,2454.9,2454.7,0.81446]
[1751465659337,0.81445,2454.8,2454.7,0.81448]
[1751465659632,0.81445,2454.8,2454.4,2.03647]
[1751465659831,24.892,2454.7,2454.6,0.8145]
[1751465660136,25.70648,2454.7,2454.6,0.8145]
[1751465660737,0.81452,2454.6,2454.5,0.81455]
[1751465661036,25.70651,2454.7,2454.6,0.81452]
[1751465661337,24.891,2454.7,2454.6,0.81452]
[1751465662330,0.81444,2454.9,2454.8,0.81445]
[1751465662526,0.81441,2455.0,2454.9,0.81442]
[1751465662733,37.27541,2455.0,2454.9,0.81442]
[1751465662926,37.39761705,2455.0,2454.9,0.81442]
[1751465663238,36.58320705,2455.0,2454.9,0.81442]
[1751465664534,36.58220705,2455.0,2454.9,0.81442]
[1751465664734,2.198,2455.5,2455.1,0.81435]
[1751465664932,37.27427,2455.4,2455.3,0.81425]
[1751465665240,0.81435,2455.2,2455.1,0.8143]
[1751465665440,24.89,2455.2,2455.1,0.82040961]
[1751465665641,25.70432,2455.2,2455.1,0.82040961]
[1751465665836,24.89,2455.2,2455.1,0.82040961]
[1751465666437,11.57,2455.3,2455.2,0.81432]
[1751465666646,36.459,2455.3,2455.2,0.81432]
[1751465666936,36.459,2455.3,2455.2,1.52152]
[1751465669344,11.57,2455.3,2455.2,1.52152]
[1751465669643,36.457,2455.3,2455.2,1.52152]
[1751465670444,11.57,2455.3,2455.2,1.52152]
[1751465670744,36.457,2455.3,2455.2,1.52152]
[1751465671042,58.96977864,2455.7,2455.3,2.03568]
[1751465671236,58.96977864,2455.7,2455.2,0.7072]
[1751465671237,11.569,2455.8,2455.7,0.81415]
[1751465671437,1.4039,2456.2,2456.1,0.81402]
[1751465671637,36.455,2456.2,2456.1,0.81402]
[1751465671837,40.29467111,2456.2,2455.8,40.8]
[1751465672140,0.81408,2455.9,2455.8,40.8]
[1751465672347,25.70008,2455.9,2455.8,40.8]
[1751465672645,0.81412,2455.8,2455.7,0.81413]
[1751465673244,0.81418,2455.6,2455.5,0.81419]
[1751465673444,24.885,2455.6,2455.5,0.81419]
[1751465675243,0.33169577,2456.3,2456.2,0.81399]
[1751465675440,2.03448,2456.8,2456.1,0.81401]
[1751465675641,3.71752874,2456.5,2455.9,3.71752874]
[1751465675844,3.71752874,2456.1,2456.0,1.3614]
[1751465676046,28.63252874,2456.1,2455.6,1.4137]
[1751465676238,3.71752874,2455.7,2455.4,1.3614]
[1751465676645,25.05312746,2455.6,2455.5,0.81422]
[1751465676847,36.61612746,2455.6,2455.4,1.3614]
[1751465677048,36.61612746,2455.6,2455.5,0.81422]
[1751465677349,36.61512746,2455.6,2455.5,0.81422]
[1751465677551,36.493,2455.6,2455.5,0.81422]
[1751465677846,36.496,2455.6,2455.5,0.8142]
[1751465678645,3.71752874,2455.8,2455.4,1.3614]
[1751465678847,36.517,2455.7,2455.6,0.81418]
[1751465679042,36.63917222,2455.7,2455.6,0.81418]
[1751465680144,36.63917222,2455.7,2455.4,2.7882]
[1751465680349,3.71752874,2455.6,2455.4,0.7015]
[1751465680648,25.86540724,2455.5,2455.3,0.81428]
[1751465680848,3.71752874,2455.4,2455.3,0.81428]
[1751465681048,25.05116724,2455.5,2455.4,0.81425]
[1751465681348,24.921,2455.5,2455.4,0.81425]
[1751465681946,3.71752874,2455.6,2455.5,0.81422]
[1751465682248,36.508,2455.6,2455.5,0.81422]
[1751465682455,11.587,2455.6,2455.5,0.81422]
[1751465682641,36.504,2455.6,2455.5,0.81422]
[1751465685254,40.22152874,2455.6,2455.5,0.81422]
[1751465688150,36.504,2455.6,2455.3,1.342]
[1751465688350,3.71752874,2455.5,2455.4,0.81425]
[1751465688752,36.504,2455.6,2455.5,0.81422]
[1751465692549,3.71752874,2455.7,2455.6,0.81418]
[1751465692753,40.20952874,2455.7,2455.6,0.81418]
[1751465692952,40.33170096,2455.7,2455.6,0.81418]
[1751465693755,11.70917222,2455.7,2455.6,0.81418]
[1751465694058,36.60817222,2455.7,2455.6,0.81418]
[1751465694254,36.60817222,2455.7,2455.6,2.21728]
[1751465694855,36.60817222,2455.7,2455.6,0.81418]
[1751465696453,40.32570096,2455.7,2455.6,0.81418]
[1751465696655,41.13985096,2455.7,2455.6,0.81418]
[1751465696856,0.8142,2455.6,2455.5,0.81419]
[1751465697055,4.53172874,2455.6,2455.5,0.81419]
[1751465697350,1.48846724,2455.6,2455.5,0.81419]
[1751465697656,0.12216724,2455.6,2455.5,0.81419]
[1751465698154,36.47,2455.6,2455.5,4.53174874]
[1751465698352,36.47,2455.6,2455.5,0.81422]
[1751465699257,36.47,2455.6,2455.5,1.47582]
[1751465700857,7.95036874,2456.4,2455.7,2.03534]
[1751465701060,3.71752874,2456.2,2455.7,4.53167874]
[1751465701260,3.71752874,2456.2,2456.1,0.81402]
[1751465701554,59.44291,2456.5,2456.4,0.81392]
[1751465701762,70.215,2456.5,2456.4,0.81392]
[1751465701961,95.21914237,2456.5,2456.4,0.81392]
[1751465702157,98.93667111,2456.5,2455.8,2.0353]
[1751465702356,3.71752874,2456.3,2455.9,2.03522]
[1751465702560,1.3862,2456.4,2455.9,7.20274874]
[1751465702763,58.629,2456.5,2456.4,0.81392]
[1751465702956,95.099,2456.5,2456.4,0.81392]
[1751465703154,95.22114237,2456.5,2456.1,2.03506]
[1751465703463,4.53146874,2456.4,2456.3,0.81395]
[1751465703861,3.83967111,2456.4,2456.3,0.81395]
[1751465704060,4.65359111,2456.4,2456.3,0.81395]
[1751465704260,0.81396,2456.3,2456.2,0.81396]
[1751465704460,24.881,2456.3,2456.0,0.665]
[1751465704661,3.83966117,2456.3,2456.2,0.81399]
[1751465704862,41.12261117,2456.3,2456.2,0.81399]
[1751465705060,40.30866117,2456.3,2455.3,5.64229958]
[1751465705361,3.71752874,2455.9,2455.8,0.81409]
[1751465705561,24.888,2455.9,2455.8,0.81409]
[1751465705762,3.71752874,2456.1,2456.0,0.81405]
[1751465705961,0.81402,2456.1,2456.0,0.81405]
[1751465706166,25.73702,2456.1,2456.0,0.81405]
[1751465706662,0.81406,2456.0,2455.9,0.81406]
[1751465707063,0.81409,2455.9,2455.8,1.4195]
[1751465707263,25.73109,2455.9,2455.8,0.81412]
[1751465707862,24.917,2455.9,2455.8,0.81412]
[1751465708762,11.578,2456.2,2455.7,3.42594]
[1751465708969,0.81418,2455.7,2455.6,0.81416]
[1751465709268,40.32668603,2455.7,2455.3,4.01301405]
[1751465709455,4.53177874,2455.5,2455.3,4.82727405]
[1751465709655,24.927,2455.4,2455.3,0.81428]
[1751465709860,11.577,2455.5,2455.4,0.81423]
[1751465710060,36.503,2455.5,2455.4,0.81423]
[1751465710462,0.81425,2455.4,2455.3,1.3906]
[1751465710660,40.22052874,2455.5,2455.3,0.81426]
[1751465710857,24.923,2455.4,2455.3,0.81426]
[1751465711056,25.73725,2455.4,2455.2,0.81429]
[1751465711262,0.81432,2455.2,2455.1,43.00122961]
[1751465711457,0.81432,2455.2,2455.1,0.00610961]
[1751465711660,0.93650217,2455.2,2455.1,0.00610961]
[1751465711863,2.96820217,2455.2,2455.1,0.00610961]
[1751465712262,0.81448,2454.7,2454.6,4.01301405]
[1751465712461,0.81452,2454.6,2454.5,4.01301405]
[1751465712661,0.81455,2454.5,2454.4,4.01301405]
[1751465712858,4.53207874,2454.5,2454.4,4.01301405]
[1751465713059,4.53207874,2454.5,2454.4,0.81458]
[1751465713259,3.71752874,2454.5,2454.4,0.81458]
[1751465713456,4.53208874,2454.5,2454.3,0.81459]
[1751465713656,24.967,2454.4,2454.3,0.81459]
[1751465714063,58.617,2454.7,2454.3,5.0]
[1751465714263,58.617,2454.7,2454.6,0.81452]
[1751465714666,59.4315,2454.7,2454.4,1.3785]
[1751465714860,24.974,2454.6,2454.1,40.8]
[1751465715063,0.81457,2454.5,2454.4,0.81458]
[1751465715259,24.974,2454.6,2454.2,2.19313]
[1751465715458,0.81462,2454.3,2454.2,2.19313]
[1751465715663,43.69504959,2454.3,2454.1,40.8]
[1751465715862,0.81476,2453.9,2453.7,5.42151405]
[1751465716159,25.79573,2454.0,2453.7,1.4085]
[1751465716363,25.79573,2454.0,2453.8,0.81477]
[1751465717160,0.81475,2453.9,2453.8,0.81477]
[1751465717363,0.81478,2453.8,2453.7,1.4085]
[1751465717668,0.81476,2453.9,2453.7,2.2233]
[1751465717864,0.81478,2453.8,2453.7,1.4085]
[1751465718769,0.81489,2453.5,2452.8,6.05076405]
[1751465719066,11.582,2453.8,2453.1,1.355]
[1751465719067,24.98,2453.7,2453.1,1.355]
[1751465719369,24.98,2453.7,2453.5,0.81487]
[1751465719764,36.566,2453.7,2453.2,7.13304959]
[1751465719970,36.566,2453.7,2453.6,0.81485]
[1751465720367,36.566,2453.7,2453.5,0.81487]
[1751465720566,37.38085,2453.7,2453.5,0.81487]
[1751465720768,39.49525,2453.7,2453.4,0.81489]
[1751465720968,7.13304959,2453.5,2453.1,42.8375]
[1751465721168,0.12226931,2453.6,2453.5,0.81488]
[1751465721362,36.581,2453.7,2453.3,2.03731]
[1751465721561,36.591,2453.7,2453.1,42.83748]
[1751465721768,36.591,2453.7,2453.5,0.81487]
[1751465722165,37.40583,2453.7,2453.4,0.81489]
[1751465722372,36.591,2453.7,2453.3,0.81492]